[Event "Titled Tuesday Blitz April 11 Early 2023"]
[White "Gharibyan, Mamikon"]
[Black "Hua, Lefong"]
[WhiteFideId "13308300"]
[BlackFideId "2602253"]
[WhiteElo "2445"]
[BlackElo "2609"]
[Result "1-0"]
[Round "03"]
[TimeControl "180+2"]
[Date "2023.04.11"]
[WhiteClock "0:00:20"]
[BlackClock "0:00:04"]

1. d4 {[%clk 0:03:00]}  Nf6 {[%clk 0:03:00]} 2. c4 {[%clk 0:02:59]}  c5 {[%clk 0:02:58]} 3. d5 {[%clk 0:02:59]}  e6 {[%clk 0:02:58]} 4. Nc3 {[%clk 0:02:58]}  exd5 {[%clk 0:02:58]} 5. cxd5 {[%clk 0:02:59]}  d6 {[%clk 0:02:59]} 6. e4 {[%clk 0:02:46]}  g6 {[%clk 0:02:59]} 7. f4 {[%clk 0:02:46]}  Bg7 {[%clk 0:02:59]} 8. Bb5+ {[%clk 0:02:46]}  Nbd7 {[%clk 0:02:59]} 9. Nf3 {[%clk 0:02:38]}  O-O {[%clk 0:02:49]} 10. O-O {[%clk 0:02:37]}  a6 {[%clk 0:02:44]} 11. Bxd7 {[%clk 0:02:36]}  Nxd7 {[%clk 0:02:34]} 12. a4 {[%clk 0:02:34]}  Re8 {[%clk 0:02:26]} 13. Re1 {[%clk 0:02:18]}  c4 {[%clk 0:02:13]} 14. Be3 {[%clk 0:02:05]}  Qc7 {[%clk 0:02:01]} 15. Bd4 {[%clk 0:02:01]}  Bxd4+ {[%clk 0:01:50]} 16. Qxd4 {[%clk 0:02:01]}  Qc5 {[%clk 0:01:51]} 17. a5 {[%clk 0:01:52]}  Qxd4+ {[%clk 0:01:39]} 18. Nxd4 {[%clk 0:01:53]}  Nc5 {[%clk 0:01:40]} 19. Re3 {[%clk 0:01:36]}  b5 {[%clk 0:01:17]} 20. axb6 {[%clk 0:01:30]}  Rb8 {[%clk 0:01:17]} 21. Na4 {[%clk 0:01:19]}  Nxa4 {[%clk 0:01:01]} 22. Rxa4 {[%clk 0:01:20]}  Rxb6 {[%clk 0:01:01]} 23. Rxc4 {[%clk 0:01:13]}  Rxb2 {[%clk 0:01:01]} 24. e5 {[%clk 0:01:13]}  dxe5 {[%clk 0:00:55]} 25. fxe5 {[%clk 0:01:10]}  Bd7 {[%clk 0:00:51]} 26. Rc7 {[%clk 0:01:04]}  Bb5 {[%clk 0:00:47]} 27. d6 {[%clk 0:01:00]}  Rd2 {[%clk 0:00:42]} 28. Nf3 {[%clk 0:00:52]}  Rd1+ {[%clk 0:00:23]} 29. Kf2 {[%clk 0:00:51]}  h6 {[%clk 0:00:15]} 30. h4 {[%clk 0:00:41]}  Ra8 {[%clk 0:00:10]} 31. e6 {[%clk 0:00:36]}  Rxd6 {[%clk 0:00:08]} 32. exf7+ {[%clk 0:00:34]}  Kf8 {[%clk 0:00:09]} 33. Ne5 {[%clk 0:00:27]}  Rf6+ {[%clk 0:00:07]} 34. Kg3 {[%clk 0:00:24]}  a5 {[%clk 0:00:07]} 35. Rc5 {[%clk 0:00:21]}  Ba4 {[%clk 0:00:04]} 36. Re4 {[%clk 0:00:20]} 1-0


[Site "https://www.chess.com"]

[Event "Titled Tuesday Blitz April 11 Early 2023"]
[White "Arias, Juan Cruz"]
[Black "Kukhmazov, Arsen"]
[WhiteFideId "118540"]
[BlackFideId "24108260"]
[WhiteElo "2243"]
[BlackElo "2396"]
[Result "1/2-1/2"]
[Round "03"]
[TimeControl "180+2"]
[Date "2023.04.11"]
[WhiteClock "0:01:05"]
[BlackClock "0:00:56"]

1. d4 {[%clk 0:03:00]}  d5 {[%clk 0:02:59]} 2. Nf3 {[%clk 0:03:01]}  Nf6 {[%clk 0:02:56]} 3. e3 {[%clk 0:03:01]}  Bg4 {[%clk 0:02:48]} 4. c4 {[%clk 0:02:55]}  c6 {[%clk 0:02:48]} 5. cxd5 {[%clk 0:02:55]}  cxd5 {[%clk 0:02:48]} 6. Qb3 {[%clk 0:02:55]}  Qc7 {[%clk 0:02:47]} 7. Bd2 {[%clk 0:02:50]}  Nc6 {[%clk 0:02:45]} 8. Nc3 {[%clk 0:02:45]}  Bxf3 {[%clk 0:02:32]} 9. gxf3 {[%clk 0:02:45]}  e6 {[%clk 0:02:33]} 10. f4 {[%clk 0:02:34]}  a6 {[%clk 0:02:31]} 11. Bd3 {[%clk 0:02:34]}  g6 {[%clk 0:02:31]} 12. Rc1 {[%clk 0:02:32]}  Bd6 {[%clk 0:02:30]} 13. Ne2 {[%clk 0:02:31]}  O-O-O {[%clk 0:02:24]} 14. Rc2 {[%clk 0:01:47]}  Kd7 {[%clk 0:02:21]} 15. Ng1 {[%clk 0:01:44]}  Ne4 {[%clk 0:02:18]} 16. Nf3 {[%clk 0:01:40]}  f6 {[%clk 0:02:17]} 17. Ke2 {[%clk 0:01:37]}  Qb8 {[%clk 0:02:01]} 18. Rhc1 {[%clk 0:01:36]}  Rc8 {[%clk 0:02:02]} 19. Qa4 {[%clk 0:01:35]}  Qa7 {[%clk 0:01:57]} 20. a3 {[%clk 0:01:29]}  b5 {[%clk 0:01:55]} 21. Qb3 {[%clk 0:01:29]}  Nxd2 {[%clk 0:01:35]} 22. Nxd2 {[%clk 0:01:30]}  Na5 {[%clk 0:01:35]} 23. Qa2 {[%clk 0:01:31]}  Nc4 {[%clk 0:01:35]} 24. a4 {[%clk 0:01:28]}  Qb6 {[%clk 0:01:29]} 25. b3 {[%clk 0:01:20]}  Nxd2 {[%clk 0:01:29]} 26. Kxd2 {[%clk 0:01:21]}  Qa5+ {[%clk 0:01:08]} 27. Ke2 {[%clk 0:01:20]}  bxa4 {[%clk 0:01:08]} 28. Rxc8 {[%clk 0:01:08]}  Rxc8 {[%clk 0:01:09]} 29. Rxc8 {[%clk 0:01:07]}  Kxc8 {[%clk 0:01:09]} 30. bxa4 {[%clk 0:01:07]}  Kd8 {[%clk 0:01:04]} 31. Qc2 {[%clk 0:01:06]}  Qb6 {[%clk 0:01:00]} 32. Kf3 {[%clk 0:01:05]}  a5 {[%clk 0:00:56]} 33. Bb5 {[%clk 0:01:05]}  Qc7 {[%clk 0:00:56]} 1/2-1/2


[Site "https://www.chess.com"]

[Event "Titled Tuesday Blitz April 11 Early 2023"]
[White "Timofeev, Artyom"]
[Black "Skvortsov, Andrei"]
[WhiteFideId "4140419"]
[BlackFideId "24108600"]
[WhiteElo "2586"]
[BlackElo "2259"]
[Result "1-0"]
[Round "03"]
[TimeControl "180+2"]
[Date "2023.04.11"]
[WhiteClock "0:01:52"]
[BlackClock "0:01:21"]

1. c4 {[%clk 0:03:00]}  g6 {[%clk 0:03:00]} 2. Nc3 {[%clk 0:03:00]}  Bg7 {[%clk 0:03:00]} 3. g3 {[%clk 0:03:00]}  e5 {[%clk 0:02:55]} 4. Bg2 {[%clk 0:02:59]}  Ne7 {[%clk 0:02:56]} 5. d3 {[%clk 0:02:57]}  O-O {[%clk 0:02:56]} 6. h4 {[%clk 0:02:54]}  h5 {[%clk 0:02:54]} 7. Nf3 {[%clk 0:02:53]}  d5 {[%clk 0:02:52]} 8. cxd5 {[%clk 0:02:48]}  Nxd5 {[%clk 0:02:53]} 9. Bg5 {[%clk 0:02:44]}  f6 {[%clk 0:02:28]} 10. Bd2 {[%clk 0:02:43]}  c6 {[%clk 0:02:25]} 11. O-O {[%clk 0:02:33]}  Kh7 {[%clk 0:02:18]} 12. a3 {[%clk 0:02:21]}  Be6 {[%clk 0:02:13]} 13. e4 {[%clk 0:02:19]}  Ne7 {[%clk 0:02:05]} 14. Be3 {[%clk 0:02:18]}  Nd7 {[%clk 0:02:00]} 15. d4 {[%clk 0:02:16]}  exd4 {[%clk 0:02:01]} 16. Nxd4 {[%clk 0:02:15]}  Bg8 {[%clk 0:02:01]} 17. Nf5 {[%clk 0:02:03]}  Nxf5 {[%clk 0:01:58]} 18. exf5 {[%clk 0:02:03]}  Bf7 {[%clk 0:01:55]} 19. Be4 {[%clk 0:01:56]}  Bh6 {[%clk 0:01:21]} 20. fxg6+ {[%clk 0:01:54]}  Bxg6 {[%clk 0:01:21]} 21. Qxh5 {[%clk 0:01:52]} 1-0


[Site "https://www.chess.com"]

[Event "Titled Tuesday Blitz April 11 Early 2023"]
[White "Seo, Jung Min"]
[Black "Bacallao Alonso, Yusnel"]
[WhiteFideId "1734687"]
[BlackFideId "3507416"]
[WhiteElo "2468"]
[BlackElo "2561"]
[Result "1-0"]
[Round "03"]
[TimeControl "180+2"]
[Date "2023.04.11"]
[WhiteClock "0:00:15"]
[BlackClock "0:00:05"]

1. e4 {[%clk 0:02:59]}  c6 {[%clk 0:02:59]} 2. d4 {[%clk 0:02:59]}  d5 {[%clk 0:03:00]} 3. e5 {[%clk 0:02:59]}  c5 {[%clk 0:03:00]} 4. Nf3 {[%clk 0:02:59]}  cxd4 {[%clk 0:03:00]} 5. Nxd4 {[%clk 0:02:57]}  Nc6 {[%clk 0:03:00]} 6. c4 {[%clk 0:02:56]}  e6 {[%clk 0:03:00]} 7. Nc3 {[%clk 0:02:51]}  Bc5 {[%clk 0:03:00]} 8. Nxc6 {[%clk 0:02:48]}  bxc6 {[%clk 0:03:01]} 9. cxd5 {[%clk 0:02:48]}  cxd5 {[%clk 0:03:00]} 10. b4 {[%clk 0:02:47]}  Be7 {[%clk 0:02:59]} 11. a3 {[%clk 0:02:32]}  Bd7 {[%clk 0:02:54]} 12. Be2 {[%clk 0:02:25]}  Qc7 {[%clk 0:02:42]} 13. Qd4 {[%clk 0:02:25]}  Nh6 {[%clk 0:02:27]} 14. Bxh6 {[%clk 0:02:22]}  gxh6 {[%clk 0:02:27]} 15. O-O {[%clk 0:02:21]}  O-O {[%clk 0:02:22]} 16. Rac1 {[%clk 0:02:06]}  Qb6 {[%clk 0:02:13]} 17. Qg4+ {[%clk 0:01:52]}  Kh8 {[%clk 0:02:13]} 18. Nxd5 {[%clk 0:01:52]}  exd5 {[%clk 0:01:57]} 19. Qxd7 {[%clk 0:01:51]}  Bg5 {[%clk 0:01:41]} 20. Rcd1 {[%clk 0:01:43]}  Rad8 {[%clk 0:01:34]} 21. Qf5 {[%clk 0:01:42]}  Qe6 {[%clk 0:01:34]} 22. Bd3 {[%clk 0:01:32]}  Qxf5 {[%clk 0:01:31]} 23. Bxf5 {[%clk 0:01:33]}  Bf4 {[%clk 0:01:31]} 24. Rfe1 {[%clk 0:01:32]}  Rfe8 {[%clk 0:01:29]} 25. e6 {[%clk 0:01:32]}  fxe6 {[%clk 0:01:29]} 26. Rxe6 {[%clk 0:01:30]}  Rxe6 {[%clk 0:01:28]} 27. Bxe6 {[%clk 0:01:30]}  d4 {[%clk 0:01:28]} 28. g3 {[%clk 0:01:30]}  Be5 {[%clk 0:01:23]} 29. Rd3 {[%clk 0:01:22]}  Rd6 {[%clk 0:01:23]} 30. Bb3 {[%clk 0:01:19]}  Rc6 {[%clk 0:01:22]} 31. f4 {[%clk 0:01:19]}  Bf6 {[%clk 0:01:22]} 32. Kf2 {[%clk 0:01:19]}  Rc1 {[%clk 0:01:21]} 33. Kf3 {[%clk 0:01:18]}  Ra1 {[%clk 0:01:17]} 34. a4 {[%clk 0:01:18]}  Kg7 {[%clk 0:01:13]} 35. Ke4 {[%clk 0:01:10]}  h5 {[%clk 0:01:11]} 36. Kf5 {[%clk 0:01:09]}  Rc1 {[%clk 0:01:07]} 37. Bd1 {[%clk 0:01:06]}  h4 {[%clk 0:01:01]} 38. g4 {[%clk 0:01:06]}  Rc4 {[%clk 0:00:56]} 39. b5 {[%clk 0:00:58]}  h6 {[%clk 0:00:52]} 40. Ke6 {[%clk 0:00:48]}  Rc1 {[%clk 0:00:24]} 41. a5 {[%clk 0:00:44]}  Rc5 {[%clk 0:00:16]} 42. Rb3 {[%clk 0:00:43]}  Bd8 {[%clk 0:00:14]} 43. b6 {[%clk 0:00:26]}  axb6 {[%clk 0:00:14]} 44. a6 {[%clk 0:00:26]}  Ra5 {[%clk 0:00:13]} 45. Be2 {[%clk 0:00:26]}  Bc7 {[%clk 0:00:11]} 46. Rd3 {[%clk 0:00:19]}  Ra4 {[%clk 0:00:11]} 47. f5 {[%clk 0:00:18]}  Bxh2 {[%clk 0:00:10]} 48. f6+ {[%clk 0:00:17]}  Kg6 {[%clk 0:00:09]} 49. Rf3 {[%clk 0:00:15]}  d3 {[%clk 0:00:07]} 50. Bxd3+ {[%clk 0:00:15]}  Kg5 {[%clk 0:00:05]} 51. f7 {[%clk 0:00:15]} 1-0


[Site "https://www.chess.com"]

[Event "Titled Tuesday Blitz April 11 Early 2023"]
[White "Erdogdu, Mert"]
[Black "Postnikov, Daniil"]
[WhiteFideId "6301495"]
[BlackFideId "4166329"]
[WhiteElo "2407"]
[BlackElo "2261"]
[Result "1-0"]
[Round "03"]
[TimeControl "180+2"]
[Date "2023.04.11"]
[WhiteClock "0:00:01"]
[BlackClock "0:00:02"]

1. e4 {[%clk 0:03:00]}  e6 {[%clk 0:02:57]} 2. d4 {[%clk 0:03:00]}  d5 {[%clk 0:02:57]} 3. exd5 {[%clk 0:03:01]}  exd5 {[%clk 0:02:57]} 4. c4 {[%clk 0:03:02]}  Bb4+ {[%clk 0:02:55]} 5. Nc3 {[%clk 0:03:02]}  Ne7 {[%clk 0:02:55]} 6. Bd3 {[%clk 0:03:02]}  dxc4 {[%clk 0:02:54]} 7. Bxc4 {[%clk 0:03:03]}  Nbc6 {[%clk 0:02:54]} 8. Nf3 {[%clk 0:03:03]}  O-O {[%clk 0:02:53]} 9. h3 {[%clk 0:02:58]}  Bf5 {[%clk 0:02:49]} 10. O-O {[%clk 0:02:59]}  h6 {[%clk 0:02:33]} 11. a3 {[%clk 0:02:55]}  Bd6 {[%clk 0:02:31]} 12. Be3 {[%clk 0:02:55]}  a6 {[%clk 0:02:31]} 13. Qd2 {[%clk 0:02:52]}  Qd7 {[%clk 0:02:31]} 14. Bxh6 {[%clk 0:02:19]}  gxh6 {[%clk 0:02:08]} 15. Qxh6 {[%clk 0:02:19]}  Bg6 {[%clk 0:01:47]} 16. Nh4 {[%clk 0:02:08]}  Bh7 {[%clk 0:01:32]} 17. Rfe1 {[%clk 0:01:50]}  Nf5 {[%clk 0:01:29]} 18. Nxf5 {[%clk 0:01:33]}  Qxf5 {[%clk 0:01:30]} 19. Re4 {[%clk 0:01:30]}  Ne7 {[%clk 0:01:18]} 20. Rg4+ {[%clk 0:01:25]}  Ng6 {[%clk 0:01:18]} 21. Ne4 {[%clk 0:01:20]}  Bf4 {[%clk 0:01:14]} 22. Ng5 {[%clk 0:01:15]}  Bxg5 {[%clk 0:01:14]} 23. Rxg5 {[%clk 0:01:16]}  Qe4 {[%clk 0:01:10]} 24. Bd5 {[%clk 0:01:04]}  Qxd4 {[%clk 0:01:01]} 25. Rxg6+ {[%clk 0:00:54]}  Bxg6 {[%clk 0:01:02]} 26. Qxg6+ {[%clk 0:00:55]}  Qg7 {[%clk 0:01:03]} 27. Qc2 {[%clk 0:00:49]}  c6 {[%clk 0:00:58]} 28. Bf3 {[%clk 0:00:35]}  Rad8 {[%clk 0:00:58]} 29. Rc1 {[%clk 0:00:35]}  Qg5 {[%clk 0:00:54]} 30. Qc4 {[%clk 0:00:24]}  Rfe8 {[%clk 0:00:48]} 31. h4 {[%clk 0:00:21]}  Qd2 {[%clk 0:00:48]} 32. Qg4+ {[%clk 0:00:18]}  Kf8 {[%clk 0:00:48]} 33. Rc5 {[%clk 0:00:16]}  Rd4 {[%clk 0:00:41]} 34. Qh5 {[%clk 0:00:11]}  Re1+ {[%clk 0:00:40]} 35. Kh2 {[%clk 0:00:11]}  Ke7 {[%clk 0:00:28]} 36. Re5+ {[%clk 0:00:10]}  Rxe5 {[%clk 0:00:25]} 37. Qxe5+ {[%clk 0:00:11]}  Kd8 {[%clk 0:00:24]} 38. Qb8+ {[%clk 0:00:09]}  Ke7 {[%clk 0:00:20]} 39. Qxb7+ {[%clk 0:00:09]}  Kf6 {[%clk 0:00:18]} 40. Qxc6+ {[%clk 0:00:09]}  Kg7 {[%clk 0:00:18]} 41. Qc3 {[%clk 0:00:03]}  Qxc3 {[%clk 0:00:15]} 42. bxc3 {[%clk 0:00:03]}  Rxh4+ {[%clk 0:00:14]} 43. Kg3 {[%clk 0:00:04]}  Ra4 {[%clk 0:00:14]} 44. Bd5 {[%clk 0:00:01]}  Rxa3 {[%clk 0:00:14]} 45. Kf4 {[%clk 0:00:01]}  a5 {[%clk 0:00:14]} 46. c4 {[%clk 0:00:01]}  a4 {[%clk 0:00:15]} 47. Ke5 {[%clk 0:00:02]}  Ra2 {[%clk 0:00:14]} 48. c5 {[%clk 0:00:03]}  Rxf2 {[%clk 0:00:12]} 49. c6 {[%clk 0:00:03]}  Rc2 {[%clk 0:00:11]} 50. Kd6 {[%clk 0:00:03]}  a3 {[%clk 0:00:12]} 51. c7 {[%clk 0:00:04]}  Kf6 {[%clk 0:00:10]} 52. Kd7 {[%clk 0:00:04]}  Kg5 {[%clk 0:00:03]} 53. Bxf7 {[%clk 0:00:03]}  Kg4 {[%clk 0:00:03]} 54. Bd5 {[%clk 0:00:03]}  Kg3 {[%clk 0:00:02]} 55. Bc6 {[%clk 0:00:01]} 1-0


[Site "https://www.chess.com"]

[Event "Titled Tuesday Blitz April 11 Early 2023"]
[White "Escanor89"]
[Black "Rodshtein, Maxim"]
[BlackFideId "2806851"]
[WhiteElo "2558"]
[BlackElo "2555"]
[Result "0-1"]
[Round "03"]
[TimeControl "180+2"]
[Date "2023.04.11"]
[WhiteClock "0:00:01"]
[BlackClock "0:00:16"]

1. c4 {[%clk 0:03:00]}  g6 {[%clk 0:02:59]} 2. Nc3 {[%clk 0:03:00]}  Bg7 {[%clk 0:02:58]} 3. d4 {[%clk 0:03:00]}  d6 {[%clk 0:02:55]} 4. e4 {[%clk 0:03:01]}  Nc6 {[%clk 0:02:54]} 5. Be3 {[%clk 0:02:52]}  e5 {[%clk 0:02:53]} 6. Nge2 {[%clk 0:02:45]}  Nf6 {[%clk 0:02:43]} 7. f3 {[%clk 0:02:41]}  O-O {[%clk 0:02:34]} 8. d5 {[%clk 0:02:41]}  Ne7 {[%clk 0:02:31]} 9. Qd2 {[%clk 0:02:39]}  c6 {[%clk 0:02:26]} 10. O-O-O {[%clk 0:02:32]}  cxd5 {[%clk 0:02:24]} 11. cxd5 {[%clk 0:02:32]}  Bd7 {[%clk 0:02:21]} 12. Kb1 {[%clk 0:02:24]}  b5 {[%clk 0:02:19]} 13. Nc1 {[%clk 0:02:24]}  a6 {[%clk 0:02:10]} 14. g4 {[%clk 0:02:18]}  Nc8 {[%clk 0:02:01]} 15. Bd3 {[%clk 0:02:14]}  Nb6 {[%clk 0:01:59]} 16. h4 {[%clk 0:02:03]}  h5 {[%clk 0:01:59]} 17. Bg5 {[%clk 0:01:41]}  hxg4 {[%clk 0:01:42]} 18. fxg4 {[%clk 0:01:39]}  Bxg4 {[%clk 0:01:34]} 19. Rdf1 {[%clk 0:01:29]}  Nbd7 {[%clk 0:01:30]} 20. h5 {[%clk 0:01:09]}  gxh5 {[%clk 0:01:25]} 21. N1e2 {[%clk 0:01:02]}  b4 {[%clk 0:01:20]} 22. Nd1 {[%clk 0:01:01]}  Qb6 {[%clk 0:00:56]} 23. Ng3 {[%clk 0:00:52]}  Rfc8 {[%clk 0:00:43]} 24. Nf2 {[%clk 0:00:23]}  Bf3 {[%clk 0:00:40]} 25. Rh2 {[%clk 0:00:20]}  Nc5 {[%clk 0:00:30]} 26. Bxf6 {[%clk 0:00:17]}  Bxf6 {[%clk 0:00:30]} 27. Nxh5 {[%clk 0:00:17]}  Bxh5 {[%clk 0:00:26]} 28. Rxh5 {[%clk 0:00:18]}  Kf8 {[%clk 0:00:25]} 29. Ng4 {[%clk 0:00:18]}  Bg7 {[%clk 0:00:25]} 30. Rhf5 {[%clk 0:00:18]}  Ra7 {[%clk 0:00:25]} 31. Nf6 {[%clk 0:00:17]}  Nxd3 {[%clk 0:00:21]} 32. Qxd3 {[%clk 0:00:17]}  Bxf6 {[%clk 0:00:18]} 33. Rxf6 {[%clk 0:00:17]}  Qc5 {[%clk 0:00:19]} 34. Qd2 {[%clk 0:00:17]}  Ke8 {[%clk 0:00:17]} 35. Qf2 {[%clk 0:00:08]}  Qxf2 {[%clk 0:00:15]} 36. R1xf2 {[%clk 0:00:08]}  Rac7 {[%clk 0:00:14]} 37. Rf1 {[%clk 0:00:06]}  Rd7 {[%clk 0:00:15]} 38. b3 {[%clk 0:00:05]}  a5 {[%clk 0:00:15]} 39. Kb2 {[%clk 0:00:05]}  Rc3 {[%clk 0:00:14]} 40. a3 {[%clk 0:00:05]}  Re3 {[%clk 0:00:14]} 41. axb4 {[%clk 0:00:05]}  axb4 {[%clk 0:00:15]} 42. Rc1 {[%clk 0:00:02]}  Re2+ {[%clk 0:00:15]} 43. Kb1 {[%clk 0:00:02]}  Rxe4 {[%clk 0:00:16]} 44. Rc6 {[%clk 0:00:01]}  Ke7 {[%clk 0:00:16]} 0-1


[Site "https://www.chess.com"]

[Event "Titled Tuesday Blitz April 11 Early 2023"]
[White "Levitskiy, Andrey"]
[Black "Karas, Marek"]
[WhiteFideId "14132885"]
[BlackFideId "14928558"]
[WhiteElo "2341"]
[BlackElo "2233"]
[Result "1/2-1/2"]
[Round "03"]
[TimeControl "180+2"]
[Date "2023.04.11"]
[WhiteClock "0:00:08"]
[BlackClock "0:00:10"]

1. e4 {[%clk 0:03:00]}  e6 {[%clk 0:02:59]} 2. d4 {[%clk 0:02:58]}  d5 {[%clk 0:02:59]} 3. Bd3 {[%clk 0:02:59]}  dxe4 {[%clk 0:02:59]} 4. Bxe4 {[%clk 0:02:59]}  Nf6 {[%clk 0:03:00]} 5. Bf3 {[%clk 0:03:00]}  c5 {[%clk 0:02:59]} 6. Ne2 {[%clk 0:03:01]}  Nc6 {[%clk 0:02:58]} 7. Be3 {[%clk 0:03:01]}  e5 {[%clk 0:02:58]} 8. Bxc6+ {[%clk 0:03:01]}  bxc6 {[%clk 0:02:59]} 9. dxe5 {[%clk 0:03:02]}  Qxd1+ {[%clk 0:02:59]} 10. Kxd1 {[%clk 0:03:03]}  Ng4 {[%clk 0:02:59]} 11. Nd2 {[%clk 0:03:03]}  Nxe5 {[%clk 0:02:58]} 12. Ne4 {[%clk 0:02:43]}  Nc4 {[%clk 0:02:40]} 13. b3 {[%clk 0:02:25]}  Nxe3+ {[%clk 0:02:37]} 14. fxe3 {[%clk 0:02:26]}  Bf5 {[%clk 0:02:31]} 15. N2g3 {[%clk 0:02:24]}  O-O-O+ {[%clk 0:02:28]} 16. Ke2 {[%clk 0:02:19]}  Bg4+ {[%clk 0:02:21]} 17. Ke1 {[%clk 0:02:07]}  Be7 {[%clk 0:02:11]} 18. h3 {[%clk 0:02:05]}  Be6 {[%clk 0:02:08]} 19. Rd1 {[%clk 0:02:03]}  Rxd1+ {[%clk 0:02:07]} 20. Kxd1 {[%clk 0:02:04]}  Rd8+ {[%clk 0:02:07]} 21. Ke2 {[%clk 0:02:04]}  c4 {[%clk 0:02:06]} 22. Rf1 {[%clk 0:01:57]}  g6 {[%clk 0:01:56]} 23. Rd1 {[%clk 0:01:28]}  Rxd1 {[%clk 0:01:55]} 24. Kxd1 {[%clk 0:01:29]}  f5 {[%clk 0:01:43]} 25. Nd2 {[%clk 0:01:27]}  cxb3 {[%clk 0:01:43]} 26. axb3 {[%clk 0:01:27]}  Bd5 {[%clk 0:01:43]} 27. e4 {[%clk 0:01:26]}  fxe4 {[%clk 0:01:43]} 28. Ngxe4 {[%clk 0:01:25]}  c5 {[%clk 0:01:25]} 29. Ke2 {[%clk 0:01:20]}  Kc7 {[%clk 0:01:22]} 30. Kd3 {[%clk 0:01:19]}  Kb6 {[%clk 0:01:21]} 31. Nc4+ {[%clk 0:01:18]}  Kc7 {[%clk 0:01:18]} 32. g3 {[%clk 0:01:05]}  Be6 {[%clk 0:01:15]} 33. h4 {[%clk 0:01:03]}  h6 {[%clk 0:01:12]} 34. Ne5 {[%clk 0:00:59]}  g5 {[%clk 0:01:11]} 35. hxg5 {[%clk 0:00:58]}  hxg5 {[%clk 0:01:12]} 36. Ke3 {[%clk 0:00:54]}  Bf5 {[%clk 0:01:11]} 37. Nf7 {[%clk 0:00:49]}  Kc6 {[%clk 0:01:05]} 38. c3 {[%clk 0:00:49]}  Be6 {[%clk 0:01:03]} 39. Ne5+ {[%clk 0:00:46]}  Kb5 {[%clk 0:00:59]} 40. c4+ {[%clk 0:00:40]}  Kb6 {[%clk 0:00:52]} 41. Nf3 {[%clk 0:00:33]}  g4 {[%clk 0:00:50]} 42. Ne5 {[%clk 0:00:34]}  Bf5 {[%clk 0:00:46]} 43. Nf2 {[%clk 0:00:32]}  Bc2 {[%clk 0:00:44]} 44. Nfxg4 {[%clk 0:00:23]}  Bxb3 {[%clk 0:00:44]} 45. Kd3 {[%clk 0:00:24]}  a5 {[%clk 0:00:43]} 46. Ne3 {[%clk 0:00:19]}  Bg5 {[%clk 0:00:41]} 47. Nd5+ {[%clk 0:00:19]}  Kb7 {[%clk 0:00:38]} 48. Nf7 {[%clk 0:00:19]}  Bc1 {[%clk 0:00:32]} 49. g4 {[%clk 0:00:13]}  a4 {[%clk 0:00:33]} 50. Kc3 {[%clk 0:00:14]}  Kc6 {[%clk 0:00:27]} 51. Ne5+ {[%clk 0:00:13]}  Kd6 {[%clk 0:00:25]} 52. Nd3 {[%clk 0:00:13]}  Bg5 {[%clk 0:00:24]} 53. Nf2 {[%clk 0:00:08]}  Ke5 {[%clk 0:00:22]} 54. Nb6 {[%clk 0:00:08]}  Kf4 {[%clk 0:00:21]} 55. Nd3+ {[%clk 0:00:06]}  Kxg4 {[%clk 0:00:21]} 56. Nxc5 {[%clk 0:00:07]}  Be3 {[%clk 0:00:19]} 57. Nbxa4 {[%clk 0:00:05]}  Bxa4 {[%clk 0:00:17]} 58. Nxa4 {[%clk 0:00:05]}  Kf5 {[%clk 0:00:17]} 59. Kb4 {[%clk 0:00:04]}  Ke6 {[%clk 0:00:17]} 60. Kb5 {[%clk 0:00:05]}  Kd7 {[%clk 0:00:16]} 61. Nb6+ {[%clk 0:00:04]}  Kd8 {[%clk 0:00:14]} 62. Nd5 {[%clk 0:00:04]}  Bg1 {[%clk 0:00:14]} 63. Kc6 {[%clk 0:00:05]}  Bf2 {[%clk 0:00:13]} 64. Nf4 {[%clk 0:00:05]}  Bg1 {[%clk 0:00:13]} 65. Nd5 {[%clk 0:00:06]}  Bf2 {[%clk 0:00:13]} 66. Nf6 {[%clk 0:00:06]}  Bg1 {[%clk 0:00:12]} 67. Ne4 {[%clk 0:00:07]}  Be3 {[%clk 0:00:12]} 68. Kd6 {[%clk 0:00:07]}  Bg1 {[%clk 0:00:11]} 69. Kc6 {[%clk 0:00:08]}  Be3 {[%clk 0:00:11]} 70. Nc3 {[%clk 0:00:08]}  Bg1 {[%clk 0:00:10]} 71. Nd5 {[%clk 0:00:08]} 1/2-1/2


[Site "https://www.chess.com"]

[Event "Titled Tuesday Blitz April 11 Early 2023"]
[White "MunichMouse"]
[Black "Alekseenko, Kirill"]
[BlackFideId "4135539"]
[WhiteElo "2308"]
[BlackElo "2683"]
[Result "0-1"]
[Round "03"]
[TimeControl "180+2"]
[Date "2023.04.11"]
[WhiteClock "0:00:54"]
[BlackClock "0:00:19"]

1. d4 {[%clk 0:03:00]}  d5 {[%clk 0:03:00]} 2. c4 {[%clk 0:03:01]}  dxc4 {[%clk 0:03:01]} 3. e3 {[%clk 0:03:01]}  e5 {[%clk 0:03:01]} 4. Bxc4 {[%clk 0:03:00]}  Nc6 {[%clk 0:03:01]} 5. Nf3 {[%clk 0:02:59]}  e4 {[%clk 0:03:02]} 6. Nfd2 {[%clk 0:02:58]}  Qg5 {[%clk 0:03:02]} 7. Kf1 {[%clk 0:02:46]}  Nf6 {[%clk 0:03:02]} 8. h4 {[%clk 0:02:45]}  Qg6 {[%clk 0:02:57]} 9. Nc3 {[%clk 0:02:39]}  h5 {[%clk 0:01:27]} 10. Nd5 {[%clk 0:02:35]}  Nxd5 {[%clk 0:01:24]} 11. Bxd5 {[%clk 0:02:34]}  Bf5 {[%clk 0:01:23]} 12. Qa4 {[%clk 0:02:32]}  Be7 {[%clk 0:01:17]} 13. Bxc6+ {[%clk 0:02:29]}  bxc6 {[%clk 0:01:18]} 14. d5 {[%clk 0:02:30]}  O-O {[%clk 0:01:17]} 15. Qxc6 {[%clk 0:02:29]}  Bd6 {[%clk 0:01:16]} 16. b3 {[%clk 0:02:17]}  Rfd8 {[%clk 0:00:58]} 17. Bb2 {[%clk 0:02:15]}  Rab8 {[%clk 0:00:55]} 18. Rc1 {[%clk 0:02:08]}  Bd7 {[%clk 0:00:55]} 19. Qc3 {[%clk 0:02:07]}  f6 {[%clk 0:00:51]} 20. Qc2 {[%clk 0:02:00]}  Bb5+ {[%clk 0:00:51]} 21. Nc4 {[%clk 0:02:00]}  Bf8 {[%clk 0:00:45]} 22. Rh3 {[%clk 0:01:57]}  Rxd5 {[%clk 0:00:41]} 23. Rg3 {[%clk 0:01:56]}  Qf5 {[%clk 0:00:42]} 24. Kg1 {[%clk 0:01:56]}  Rbd8 {[%clk 0:00:40]} 25. a4 {[%clk 0:01:52]}  Ba6 {[%clk 0:00:37]} 26. b4 {[%clk 0:01:51]}  Kh7 {[%clk 0:00:35]} 27. b5 {[%clk 0:01:50]}  Bc8 {[%clk 0:00:35]} 28. Bd4 {[%clk 0:01:45]}  Bc5 {[%clk 0:00:32]} 29. Bxc5 {[%clk 0:01:31]}  Rxc5 {[%clk 0:00:33]} 30. Qb2 {[%clk 0:01:31]}  Be6 {[%clk 0:00:32]} 31. Na5 {[%clk 0:01:22]}  Rxc1+ {[%clk 0:00:30]} 32. Qxc1 {[%clk 0:01:23]}  Rd7 {[%clk 0:00:31]} 33. Nc6 {[%clk 0:01:23]}  Qd5 {[%clk 0:00:23]} 34. Nd4 {[%clk 0:01:23]}  Bg4 {[%clk 0:00:23]} 35. f3 {[%clk 0:01:17]}  Qe5 {[%clk 0:00:24]} 36. Kf2 {[%clk 0:01:16]}  Bf5 {[%clk 0:00:21]} 37. Qc6 {[%clk 0:01:15]}  Rxd4 {[%clk 0:00:18]} 38. exd4 {[%clk 0:01:14]}  e3+ {[%clk 0:00:18]} 39. Ke1 {[%clk 0:00:55]}  Qxg3+ {[%clk 0:00:19]} 40. Ke2 {[%clk 0:00:54]}  Qf2+ {[%clk 0:00:19]} 0-1


[Site "https://www.chess.com"]